fUSD/lending_fUSD_20251222
["ID","MTS","AMOUNT","RATE_DAILY","PERIOD"]
[399459425,1766373038261,-188.81,0.00016202,2]
[399459427,1766373038274,-151.13,0.00016221,2]
[399459429,1766373038284,-3118.99182965,0.00016317,2]
[399459431,1766373038295,-187.56540729,0.00016338,2]
[399459433,1766373038306,-1768.13987081,0.00016438,2]
[399459435,1766373038315,-1773.57141166,0.00016438,2]
[399459437,1766373038325,-1773.57141166,0.00016438,2]
[399459439,1766373038336,-1773.57141166,0.00016438,2]
[399459441,1766373038346,-1773.57141166,0.00016438,2]
[399459443,1766373038356,-1773.57141166,0.00016438,2]
[399459445,1766373038369,-1773.57141166,0.00016438,2]
[399459447,1766373038380,-1773.57141166,0.00016438,2]
[399459449,1766373038390,-1773.57141166,0.00016438,2]
[399459452,1766373038400,-1773.57141166,0.00016438,2]
[399459453,1766373038410,-1773.57141166,0.00016438,2]
[399459455,1766373038420,-1773.57141166,0.00016438,2]
[399459457,1766373038430,-1773.57141166,0.00016438,2]
[399459459,1766373038441,-1773.57141166,0.00016438,2]
[399459461,1766373038451,-1773.57141166,0.00016438,2]
[399459464,1766373038461,-1773.57141166,0.00016438,2]
[399459465,1766373038471,-1773.57141166,0.00016438,2]
[399459467,1766373038480,-1773.57141166,0.00016438,2]
[399459470,1766373038490,-1773.57141166,0.00016438,2]
[399459471,1766373038500,-1773.57141166,0.00016438,2]
[399459473,1766373038511,-1773.57141166,0.00016438,2]
[399459475,1766373038522,-1773.57141166,0.00016438,2]
[399459477,1766373038533,-1773.57141166,0.00016438,2]
[399459479,1766373038542,-1773.57141166,0.00016438,2]
[399459481,1766373038552,-1773.57141166,0.00016438,2]
[399459483,1766373038562,-1773.57141166,0.00016438,2]
[399459484,1766373038571,-1773.57141166,0.00016438,2]
[399459486,1766373038582,-1773.57141166,0.00016438,2]
[399459488,1766373038592,-1773.57141166,0.00016438,2]
[399459489,1766373038602,-1773.57141166,0.00016438,2]
[399459490,1766373038613,-1773.57141166,0.00016438,2]
[399459491,1766373038624,-1773.57141166,0.00016438,2]
[399459492,1766373038635,-1773.57141166,0.00016438,2]
[399459493,1766373038646,-1773.57141166,0.00016438,2]
[399459494,1766373038657,-1773.57141166,0.00016438,2]
[399459495,1766373038667,-1773.57141166,0.00016438,2]
[399459496,1766373038677,-1773.57141166,0.00016438,2]
[399459497,1766373038687,-1773.57141166,0.00016438,2]
[399459498,1766373038698,-1773.57141166,0.00016438,2]
[399459499,1766373038708,-1773.57141166,0.00016438,2]
[399459500,1766373038718,-1773.57141166,0.00016438,2]
[399459501,1766373038729,-1773.57141166,0.00016438,2]
[399459502,1766373038739,-1773.57141166,0.00016438,2]
[399459503,1766373038749,-1773.57141166,0.00016438,2]
[399459504,1766373038759,-1773.57141166,0.00016438,2]
[399459505,1766373038769,-1773.57141166,0.00016438,2]
[399459506,1766373038780,-1773.57141166,0.00016438,2]
[399459507,1766373038790,-1773.57141166,0.00016438,2]
[399459508,1766373038800,-1773.57141166,0.00016438,2]
[399459509,1766373038810,-1773.57141166,0.00016438,2]
[399459510,1766373038819,-1773.57141166,0.00016438,2]
[399459511,1766373038829,-1773.57141166,0.00016438,2]
[399459512,1766373038839,-1773.57141166,0.00016438,2]
[399459513,1766373038849,-1773.57141166,0.00016438,2]
[399459514,1766373038859,-1773.57141166,0.00016438,2]
[399459515,1766373038869,-1773.57141166,0.00016438,2]
[399459516,1766373038879,-1773.57141166,0.00016438,2]
[399459517,1766373038888,-1773.57141166,0.00016438,2]
[399459518,1766373038898,-1773.57141166,0.00016438,2]
[399459519,1766373038908,-1773.57141166,0.00016438,2]
[399459520,1766373038917,-1773.57141166,0.00016438,2]
[399459521,1766373038927,-1773.57141166,0.00016438,2]
[399459522,1766373038937,-1773.57141166,0.00016438,2]
[399459523,1766373038947,-1773.57141166,0.00016438,2]
[399459524,1766373038957,-1773.57141166,0.00016438,2]
[399459525,1766373038967,-1773.57141166,0.00016438,2]
[399459526,1766373038976,-1773.57141166,0.00016438,2]
[399459527,1766373038985,-1773.57141166,0.00016438,2]
[399459528,1766373038994,-1773.57141166,0.00016438,2]
[399459529,1766373039003,-1773.57141166,0.00016438,2]
[399459530,1766373039013,-1773.57141166,0.00016438,2]
[399459531,1766373039023,-1773.57141166,0.00016438,2]
[399459532,1766373039033,-1773.57141166,0.00016438,2]
[399459533,1766373039043,-1773.57141166,0.00016438,2]
[399459534,1766373039053,-1773.57141166,0.00016438,2]
[399459535,1766373039064,-1773.57141166,0.00016438,2]
[399459536,1766373039074,-1773.57141166,0.00016438,2]
[399459537,1766373039084,-1773.57141166,0.00016438,2]
[399459538,1766373039094,-1773.57141166,0.00016438,2]
[399459539,1766373039104,-1773.57141166,0.00016438,2]
[399459540,1766373039114,-1773.57141166,0.00016438,2]
[399459541,1766373039124,-1773.57141166,0.00016438,2]
[399459542,1766373039134,-1773.57141166,0.00016438,2]
[399459543,1766373039144,-1773.57141166,0.00016438,2]
[399459544,1766373039154,-1773.57141166,0.00016438,2]
[399459545,1766373039167,-1773.57141166,0.00016438,2]
[399459546,1766373039177,-1773.57141166,0.00016438,2]
[399459547,1766373039188,-1773.57141166,0.00016438,2]
[399459548,1766373039197,-1773.57141166,0.00016438,2]
[399459549,1766373039209,-1773.57141166,0.00016438,2]
[399459550,1766373039219,-1773.57141166,0.00016438,2]
[399459551,1766373039228,-1773.57141166,0.00016438,2]
[399459552,1766373039239,-1773.57141166,0.00016438,2]
[399459553,1766373039249,-800.66640866,0.00016438,2]
[399459554,1766373039259,-3118.99182965,0.00016463,2]
[399459555,1766373039268,-356.16077878,0.00016473,2]
[399459556,1766373039278,-500.0,0.00016473,2]
[399459558,1766373039289,-500.88851044,0.00016473,2]
[399459560,1766373039298,-500.23459526,0.00016473,2]
[399459562,1766373039307,-500.89063362,0.00016473,2]
[399459563,1766373039316,-519.00415051,0.00016473,2]
[399459564,1766373039328,-500.0,0.00016473,2]
[399459565,1766373039338,-500.28027426,0.00016473,2]
[399459566,1766373039347,-500.5380025,0.00016473,2]
[399459567,1766373039356,-500.0,0.00016473,2]
[399459568,1766373039367,-500.71610448,0.00016473,2]
[399459569,1766373039376,-570.44343091,0.00016473,2]
[399459570,1766373039386,-162.4264826,0.00016473,2]
[399459571,1766373039396,-500.59656143,0.00016473,2]
[399459572,1766373039405,-500.92519729,0.00016473,2]
[399459573,1766373039415,-500.25404697,0.00016473,2]
[399459574,1766373039423,-500.0,0.00016473,2]
[399459575,1766373039433,-556.12570782,0.00016473,2]
[399459576,1766373039442,-500.89704022,0.00016473,2]
[399459577,1766373039451,-500.85006285,0.00016473,2]
[399459578,1766373039460,-334.69874754,0.00016473,2]
[399459579,1766373039470,-500.0,0.00016473,2]
[399459580,1766373039480,-500.0,0.00016473,2]
[399459581,1766373039489,-639.90034145,0.00016473,2]
[399459583,1766373039498,-500.93365607,0.00016473,2]
[399459584,1766373039507,-500.14110793,0.00016473,2]
[399459585,1766373039516,-160.22953204,0.00016473,2]
[399459586,1766373039525,-150.2134934,0.00016473,2]
[399459587,1766373039535,-160.2285992,0.00016473,2]
[399459588,1766373039543,-160.22953259,0.00016473,2]
[399459589,1766373039553,-500.23816043,0.00016473,2]
[399459590,1766373039562,-500.26932841,0.00016473,2]
[399459591,1766373039571,-500.364387,0.00016473,2]
[399459592,1766373039580,-500.23431497,0.00016473,2]
[399459593,1766373039589,-500.0,0.00016473,2]
[399459594,1766373039598,-500.40105858,0.00016473,2]
[399459595,1766373039607,-182.65808094,0.00016473,2]
[399459596,1766373039620,-500.0,0.00016473,2]
[399459597,1766373039629,-500.84177563,0.00016473,2]
[399459598,1766373039638,-500.76356067,0.00016473,2]
[399459599,1766373039648,-160.23136935,0.00016473,2]
[399459600,1766373039657,-500.31559723,0.00016473,2]
[399459601,1766373039666,-160.23033873,0.00016473,2]
[399459602,1766373039675,-160.22398459,0.00016473,2]
[399459603,1766373039684,-500.0,0.00016473,2]
[399459604,1766373039693,-500.19873097,0.00016473,2]
[399459605,1766373039702,-500.0,0.00016473,2]
[399459606,1766373039712,-500.0,0.00016473,2]
[399459607,1766373039722,-500.0,0.00016473,2]
[399459608,1766373039732,-500.0,0.00016473,2]
[399459609,1766373039741,-500.0,0.00016473,2]
[399459610,1766373039751,-500.0,0.00016473,2]
[399459611,1766373039759,-566.05199029,0.00016473,2]
[399459612,1766373039768,-500.23422882,0.00016473,2]
[399459613,1766373039778,-500.0,0.00016473,2]
[399459614,1766373039787,-500.0,0.00016473,2]
[399459615,1766373039796,-500.94017287,0.00016473,2]
[399459616,1766373039805,-500.4866391,0.00016473,2]
[399459617,1766373039814,-500.0,0.00016473,2]
[399459618,1766373039823,-500.0,0.00016473,2]
[399459619,1766373039832,-500.0,0.00016473,2]
[399459620,1766373039841,-500.0,0.00016473,2]
[399459621,1766373039850,-500.0,0.00016473,2]
[399459622,1766373039859,-500.69670875,0.00016473,2]
[399459623,1766373039869,-577.70558009,0.00016473,2]
[399459624,1766373039878,-500.0,0.00016473,2]
[399459625,1766373039888,-864.28,0.00016473,2]
[399459626,1766373039897,-433.0,0.00016517,2]
[399459627,1766373039907,-3118.99182965,0.00016609,2]
[399459628,1766373039916,-305.13763529,0.00016716,2]
[399459629,1766373039925,-864.28,0.00016747,2]
[399459630,1766373039935,-3118.99182965,0.00016754,2]
[399459631,1766373039944,-1002.5,0.00016768,2]
[399459632,1766373039953,-1000.0,0.000168,2]
[399459633,1766373039962,-200.0,0.00016864,2]
[399459634,1766373039972,-500.0,0.00016892,2]
[399459635,1766373039981,-500.0,0.00016899,2]
[399459636,1766373039990,-500.0,0.00016899,2]
[399459637,1766373039999,-500.0,0.00016899,2]
[399459638,1766373040008,-500.0,0.00016899,2]
[399459639,1766373040018,-500.0,0.00016899,2]
[399459641,1766373040027,-500.0,0.00016899,2]
[399459643,1766373040036,-500.0,0.00016899,2]
[399459644,1766373040046,-338.74351494,0.00016899,2]
[399459645,1766373040055,-500.0,0.00016899,2]
[399459646,1766373040064,-500.0,0.00016899,2]
[399459648,1766373040074,-548.39145634,0.00016899,2]
[399459649,1766373040084,-500.0,0.00016899,2]
[399459651,1766373040093,-500.0,0.00016899,2]
[399459653,1766373040102,-500.0,0.00016899,2]
[399459655,1766373040111,-500.0,0.00016899,2]
[399459657,1766373040121,-500.0,0.00016899,2]
[399459659,1766373040130,-500.0,0.00016899,2]
[399459690,1766373040428,-500.0,0.00016899,2]
[399459692,1766373040438,-500.0,0.00016899,2]
[399459694,1766373040448,-500.0,0.00016899,2]
[399459696,1766373040458,-500.0,0.00016899,2]
[399459698,1766373040468,-500.0,0.00016899,2]
[399459700,1766373040478,-500.0,0.00016899,2]
[399459702,1766373040487,-500.0,0.00016899,2]
[399459704,1766373040497,-512.28287163,0.00016899,2]
[399459706,1766373040506,-10000.0,0.000169,2]
[399459708,1766373040515,-446.44009408,0.000169,2]
[399459710,1766373040524,-789.72085993,0.000169,2]
[399459712,1766373040534,-150.0,0.000169,2]
[399459714,1766373040543,-1859.68512571,0.000169,2]
[399459716,1766373040553,-262.4816576,0.000169,2]
[399459718,1766373040563,-256.92797377,0.000169,2]
[399459720,1766373040573,-3118.99182965,0.000169,2]
[399459722,1766373040583,-993.39878029,0.00016912,2]
[399459724,1766373040592,-14520.6908563,0.00016922,2]
[399459726,1766373040602,-265383.6756556,0.00016922,2]
[399459728,1766373040611,-224.06009191,0.00016964,2]
[399459730,1766373040625,-150.0,0.00016973,2]
[399459732,1766373040634,-993.39878029,0.0001699,2]
[399459734,1766373040643,-993.39878029,0.0001699,2]
[399459736,1766373040653,-151.0,0.00016997,2]
[399459738,1766373040663,-151.0,0.00016997,2]
[399459740,1766373040673,-151.0,0.00016997,2]
[399459742,1766373040683,-500.0,0.00016999,2]
[399459744,1766373040692,-425.41,0.00016999,2]
[399459746,1766373040701,-500.0,0.00016999,2]
[399459748,1766373040710,-436.38149996,0.00016999,2]
[399459750,1766373040720,-1204.13904522,0.00016999,5]
[399459752,1766373040729,-763432.23369003,0.00017,2]
[399459763,1766373040894,-4470763.50475427,0.00017,2]
[399459764,1766373040904,-2000.0,0.00017,2]
[399459765,1766373040913,-250.0,0.00017,2]
[399459766,1766373040922,-151.6579716,0.00017,2]
[399459767,1766373040931,-231.55844519,0.00017,2]
[399459768,1766373040940,-7000.0,0.00017,2]
[399459769,1766373040949,-500.0,0.0001702,2]
[399459770,1766373040958,-1000.0,0.00017021,2]
[399459771,1766373040967,-1000.0,0.00017021,2]
[399459772,1766373040976,-581.27415104,0.00017021,2]
[399459773,1766373040986,-1000.0,0.00017021,2]
[399459774,1766373040995,-1000.0,0.00017021,2]
[399459775,1766373041004,-1000.0,0.00017021,2]
[399459776,1766373041013,-1000.0,0.00017021,2]
[399459777,1766373041022,-1000.0,0.00017021,2]
[399459778,1766373041031,-1000.0,0.00017021,2]
[399459779,1766373041041,-1000.0,0.00017021,2]
[399459780,1766373041050,-962.50874655,0.00017021,2]
[399459781,1766373041063,-502.13430343,0.00017021,2]
[399459782,1766373041072,-1000.0,0.00017021,2]
[399459783,1766373041082,-1000.0,0.00017021,2]
[399459784,1766373041091,-1000.0,0.00017021,2]
[399459785,1766373041100,-1000.0,0.00017021,2]
[399459787,1766373041110,-1000.0,0.00017021,2]
[399459788,1766373041124,-1000.0,0.00017021,2]
[399459790,1766373041133,-1000.0,0.00017021,2]
[399459792,1766373041143,-1000.0,0.00017021,2]
[399459794,1766373041156,-1000.0,0.00017021,2]
[399459796,1766373041168,-257.18076506,0.00017021,2]
[399459798,1766373041177,-864.28,0.00017021,2]
[399459799,1766373041187,-412.96,0.00017065,2]
[399459800,1766373041196,-7000.0,0.0001724,2]
[399459801,1766373041207,-422.483672,0.00017273,2]
[399459802,1766373041218,-177.22092957,0.00017291,2]
[399459803,1766373041228,-864.28,0.00017295,2]
[399459804,1766373041238,-1000.0,0.00017382,2]
[399459805,1766373041249,-1098.0,0.00017445,2]
[399459806,1766373041260,-1600.0,0.00017451,2]
[399459807,1766373041269,-2000.0,0.000175,2]
[399459808,1766373041279,-232.9120576,0.00017521,2]
[399459809,1766373041288,-864.28,0.00017568,2]
[399459810,1766373041298,-1500.0,0.00017568,2]
[399459811,1766373041307,-1500.0,0.00017568,2]
[399459812,1766373041317,-1500.0,0.00017568,2]
[399459813,1766373041326,-1500.0,0.00017568,2]
[399459814,1766373041335,-1500.0,0.00017568,2]
[399459815,1766373041344,-1500.0,0.00017568,2]
[399459816,1766373041353,-1311.86809345,0.00017568,2]
[399459817,1766373041365,-1500.0,0.00017568,2]
[399459818,1766373041374,-1500.0,0.00017568,2]
[399459819,1766373041383,-676.20718988,0.00017568,2]
[399459820,1766373041393,-1500.0,0.00017568,2]
[399459821,1766373041402,-1500.0,0.00017568,2]
[399459822,1766373041412,-1500.0,0.00017568,2]
[399459823,1766373041421,-625.9152151,0.00017568,2]
[399459824,1766373041431,-1500.0,0.00017568,2]
[399459825,1766373041440,-1500.0,0.00017568,2]
[399459826,1766373041449,-1500.0,0.00017568,2]
[399459827,1766373041459,-1500.0,0.00017568,2]
[399459828,1766373041468,-7000.0,0.0001775,2]
[399459829,1766373041477,-412.96,0.00017807,2]
[399459830,1766373041486,-736.0,0.00017822,2]
[399459831,1766373041495,-864.28,0.00017842,2]
[399459832,1766373041503,-501.06407391,0.00017877,2]
[399459833,1766373041512,-178673.57008152,0.00018,2]
[399459834,1766373041521,-42849.94444083,0.00018,2]
[399459835,1766373041531,-1185.78700724,0.00018,2]
[399459836,1766373041540,-1000.0,0.00018082,2]
[399459837,1766373041549,-1772.73483202,0.000181,2]
[399459838,1766373041559,-864.28,0.00018116,2]
[399459839,1766373041568,-580.39649573,0.00018116,2]
[399459840,1766373041578,-1004.56928307,0.00018116,2]
[399459841,1766373041587,-2000.0,0.00018116,2]
[399459842,1766373041596,-1099.70922982,0.00018116,2]
[399459843,1766373041605,-217.0059997,0.00018116,2]
[399459844,1766373041616,-2000.0,0.00018116,2]
[399459845,1766373041625,-2000.0,0.00018116,2]
[399459846,1766373041634,-440.5527102,0.00018116,2]
[399459847,1766373041643,-2000.0,0.00018116,2]
[399459848,1766373041652,-2000.0,0.00018116,2]
[399459849,1766373041662,-557.97591643,0.00018116,2]
[399459850,1766373041672,-1876.92050225,0.00018116,2]
[399459851,1766373041681,-2000.0,0.00018116,2]
[399459852,1766373041690,-2000.0,0.00018116,2]
[399459853,1766373041699,-2000.0,0.00018116,2]
[399459854,1766373041708,-7000.0,0.0001825,2]
[399459855,1766373041716,-69733.8,0.00018356,2]
[399459856,1766373041725,-1098.0,0.00018363,2]
[399459857,1766373041734,-5689.47,0.00018389,2]
[399459858,1766373041744,-864.33908961,0.0001839,2]
[399459859,1766373041752,-412.96,0.00018549,2]
[399459860,1766373041762,-151.25160454,0.00018556,2]
[399459861,1766373041771,-2500.0,0.00018664,2]
[399459862,1766373041780,-2500.0,0.00018664,2]
[399459863,1766373041789,-2500.0,0.00018664,2]
[399459864,1766373041800,-2444.30175321,0.00018664,2]
[399459865,1766373041810,-775.24676858,0.00018664,2]
[399459866,1766373041819,-965.69163405,0.00018664,2]
[399459867,1766373041829,-1062.97453287,0.00018664,2]
[399459868,1766373041838,-2500.0,0.00018664,2]
[399459869,1766373041847,-14520.6908563,0.00018679,2]
[399459870,1766373041856,-7000.0,0.0001875,2]
[399459871,1766373041867,-1000.0,0.0001876,2]
[399459872,1766373041876,-1002.5,0.00018789,2]
[399459873,1766373041885,-151.03,0.000188,2]
[399459874,1766373041894,-151.03,0.000188,2]
[399459875,1766373041903,-151.03,0.000188,2]
[399459876,1766373041912,-151.03,0.000188,2]
[399459877,1766373041922,-151.03,0.000188,2]
[399459878,1766373041931,-151.03,0.000188,2]
[399459879,1766373041941,-151.03,0.000188,2]
[399459880,1766373041950,-151.03,0.000188,2]
[399459881,1766373041960,-151.03,0.000188,2]
[399459882,1766373041969,-151.03,0.000188,2]
[399459883,1766373041978,-151.03,0.000188,2]
[399459884,1766373041987,-151.03,0.000188,2]
[399459885,1766373041996,-151.03,0.000188,2]
[399459886,1766373042005,-151.03,0.000188,2]
[399459887,1766373042014,-151.03,0.000188,2]
[399459888,1766373042023,-151.03,0.000188,2]
[399459889,1766373042033,-151.03,0.000188,2]
[399459890,1766373042042,-151.03,0.000188,2]
[399459891,1766373042051,-151.03,0.000188,2]
[399459892,1766373042061,-151.03,0.000188,2]
[399459893,1766373042070,-151.03,0.000188,2]
[399459894,1766373042079,-151.03,0.000188,2]
[399459895,1766373042089,-151.03,0.000188,2]
[399459896,1766373042099,-151.03,0.000188,2]
[399459897,1766373042108,-151.03,0.000188,2]
[399459898,1766373042118,-151.03,0.000188,2]
[399459899,1766373042128,-151.03,0.000188,2]
[399459900,1766373042137,-151.03,0.000188,2]
[399459901,1766373042146,-151.03,0.000188,2]
[399459902,1766373042156,-151.03,0.000188,2]
[399459903,1766373042169,-151.03,0.000188,2]
[399459904,1766373042179,-151.03,0.000188,2]
[399459905,1766373042188,-151.03,0.000188,2]
[399459906,1766373042197,-151.03,0.000188,2]
[399459907,1766373042210,-151.03,0.000188,2]
[399459908,1766373042225,-151.03,0.000188,2]
[399459909,1766373042235,-151.03,0.000188,2]
[399459910,1766373042245,-151.03,0.000188,2]
[399459911,1766373042254,-151.03,0.000188,2]
[399459912,1766373042263,-151.03,0.000188,2]
[399459913,1766373042279,-151.03,0.000188,2]
[399459914,1766373042291,-151.03,0.000188,2]
[399459915,1766373042300,-151.03,0.000188,2]
[399459916,1766373042310,-151.03,0.000188,2]
[399459917,1766373042319,-151.03,0.000188,2]
[399459918,1766373042329,-151.03,0.000188,2]
[399459919,1766373042338,-151.03,0.000188,2]
[399459920,1766373042348,-151.03,0.000188,2]
[399459921,1766373042357,-151.03,0.000188,2]
[399459922,1766373042366,-151.03,0.000188,2]
[399459923,1766373042376,-151.03,0.000188,2]
[399459924,1766373042385,-151.03,0.000188,2]
[399459925,1766373042394,-151.03,0.000188,2]
[399459926,1766373042403,-151.03,0.000188,2]
[399459927,1766373042412,-151.03,0.000188,2]
[399459928,1766373042424,-151.03,0.000188,2]
[399459929,1766373042433,-151.03,0.000188,2]
[399459930,1766373042443,-151.03,0.000188,2]
[399459931,1766373042452,-151.03,0.000188,2]
[399459932,1766373042461,-151.03,0.000188,2]
[399459933,1766373042470,-151.03,0.000188,2]
[399459934,1766373042480,-155.35376724,0.000189,2]
[399459936,1766373042489,-5149.27655142,0.00019,2]
[399459938,1766373042498,-1050.83828415,0.00019,2]
[399459939,1766373042507,-486.64088377,0.00019,2]
[399459940,1766373042518,-1630.00561313,0.00019,2]
[399459941,1766373042526,-136466.33568209,0.00019,2]
[399459942,1766373042536,-300.0,0.00019,2]
[399459943,1766373042545,-356.89133829,0.0001901,7]
[399459944,1766373042554,-710.0,0.00019178,2]
[399459945,1766373042563,-20061.77,0.00019178,2]
[399459946,1766373042572,-150.0,0.00019178,2]
[399459947,1766373042580,-1600.0,0.00019196,2]
[399459948,1766373042589,-1105.14543277,0.00019212,2]
[399459950,1766373042598,-1662.27138094,0.00019212,2]
[399459952,1766373042607,-3000.0,0.00019212,2]
[399459953,1766373042617,-3000.0,0.00019212,2]
[399459955,1766373042626,-1252.0,0.00019227,2]
[399459956,1766373042635,-7000.0,0.0001924,2]
[399459957,1766373042645,-11621.41090142,0.00019249,2]
[399459958,1766373042654,-412.96,0.00019291,2]
[399459959,1766373042663,-1000.0,0.00019314,2]
[399459960,1766373042672,-1098.0,0.0001933,2]
[399459961,1766373042682,-265383.6756556,0.0001935,2]
[399459962,1766373042691,-500.0,0.00019397,2]
[399459963,1766373042700,-6250.3435069,0.00019408,2]
[399459964,1766373042709,-140477.7573644,0.0001941,2]
[399459965,1766373042718,-1000.0,0.00019438,2]
[399459966,1766373042727,-4840.2302854,0.00019509,2]
[399459967,1766373042736,-158.67617392,0.00019627,2]
[399459968,1766373042745,-155.74604872,0.00019627,2]
[399459969,1766373042754,-160.68439963,0.00019627,2]
[399459970,1766373042763,-157.04290017,0.00019627,2]
[399459971,1766373042773,-157.86754475,0.00019627,2]
[399459972,1766373042783,-152.87156213,0.00019627,2]
[399459973,1766373042792,-156.34624358,0.00019627,2]
[399459974,1766373042802,-900.0,0.00019726,2]
[399459975,1766373042811,-250.0,0.00019726,2]
[399459976,1766373042820,-3500.0,0.0001976,2]
[399459977,1766373042829,-3500.0,0.0001976,2]
[399459978,1766373042839,-8527.56501172,0.0001995,15]
[399459979,1766373042848,-151.0,0.00019997,2]
[399459980,1766373042858,-1000.0,0.0002,7]
[399459981,1766373042869,-500.0,0.0002,2]
[399459982,1766373042879,-10878.84743007,0.0002,2]
[399459983,1766373042889,-1528.03867543,0.0002,2]
[399459984,1766373042898,-1460.52999165,0.0002,5]
[399459985,1766373042907,-8270.88660459,0.0002,2]
[399459986,1766373042918,-415675.44781683,0.0002,5]
[399459987,1766373042928,-500.0,0.00020001,2]
[399459988,1766373042937,-500.0,0.00020002,2]
[399459989,1766373042948,-499.9999,0.00020003,2]
[399459990,1766373042957,-8720.0,0.0002001,2]
[399459992,1766373042966,-412.96,0.00020033,2]
[399459993,1766373042975,-151.25160454,0.00020102,2]
[399459994,1766373042984,-1000.0,0.00020116,2]
[399459995,1766373042993,-1000.0,0.00020187,2]
[399459996,1766373043003,-2095.0,0.00020254,2]
[399459997,1766373043012,-2095.0,0.00020271,2]
[399459998,1766373043021,-615.67631493,0.00020274,2]
[399459999,1766373043031,-350.0,0.00020274,2]
[399460000,1766373043041,-4000.0,0.00020308,2]
[399460001,1766373043050,-682.58794484,0.00020308,2]
[399460002,1766373043059,-2095.0,0.00020346,2]
[399460003,1766373043068,-1098.0,0.00020347,2]
[399460005,1766373043077,-151.0,0.00020363,2]
[399460007,1766373043087,-156.587,0.00020363,2]
[399460009,1766373043096,-162.380719,0.00020363,2]
[399460011,1766373043105,-153.6660154,0.00020363,2]
[399460013,1766373043114,-151.0,0.00020363,2]
[399460015,1766373043126,-200.0,0.00020363,2]
[399460017,1766373043135,-207.4,0.00020363,2]
[399460018,1766373043144,-215.0738,0.00020363,2]
[399460019,1766373043155,-223.0315306,0.00020363,2]
[399460020,1766373043166,-231.28369723,0.00020363,2]
[399460021,1766373043176,-239.84119403,0.00020363,2]
[399460022,1766373043185,-248.71531821,0.00020363,2]
[399460023,1766373043195,-257.91778498,0.00020363,2]
[399460024,1766373043205,-267.46074303,0.00020363,2]
[399460025,1766373043214,-14520.6908563,0.00020435,2]
[399460026,1766373043223,-200.0,0.00020501,2]
[399460027,1766373043234,-2095.0,0.00020518,2]
[399460028,1766373043243,-21441.69,0.00020548,2]
[399460029,1766373043253,-192.0,0.00020548,2]
[399460030,1766373043262,-2095.0,0.00020633,2]
[399460031,1766373043271,-2095.0,0.00020686,2]
[399460032,1766373043281,-22573.79490418,0.000207,2]
[399460033,1766373043290,-2000.0,0.000207,2]
[399460034,1766373043300,-256.08,0.00020704,2]
[399460035,1766373043309,-2129.0,0.0002076,2]
[399460036,1766373043319,-1000.0,0.00020795,2]
[399460037,1766373043329,-1002.5,0.0002081,2]
[399460038,1766373043339,-450.0,0.00020822,2]
[399460039,1766373043349,-776.44176676,0.00020856,2]
[399460040,1766373043358,-2095.0,0.00020864,2]
[399460041,1766373043369,-1600.0,0.00020941,2]
[399460042,1766373043378,-20000.0,0.00021,2]
[399460043,1766373043388,-160.0,0.00021,7]
[399460044,1766373043398,-350.0,0.00021,2]
[399460045,1766373043407,-3228.79,0.00021068,2]
[399460046,1766373043418,-2095.0,0.00021097,2]
[399460047,1766373043427,-2000.0,0.000212,2]
[399460048,1766373043436,-188.81,0.00021207,2]
[399460049,1766373043446,-2095.0,0.00021227,2]
[399460050,1766373043455,-1000.0,0.00021245,2]
[399460051,1766373043464,-262.48165757,0.000213,2]
[399460052,1766373043473,-550.0,0.0002137,2]
[399460053,1766373043482,-2095.0,0.00021404,2]
[399460054,1766373043491,-1098.0,0.00021418,2]
[399460055,1766373043501,-151.13,0.00021425,2]
[399460056,1766373043510,-2095.0,0.00021449,2]
[399460057,1766373043520,-2095.0,0.00021515,2]